bitfinex-derivatives/quotes_ETHF0:USTF0_20250320
["timestamp","ask_amount","ask_price","bid_price","bid_amount"]
[1742444099278,1.3172,2025.7,2025.6,2.12165]
[1742444100765,1.348,2026.0,2025.9,0.78967]
[1742444100967,2.13764,2026.0,2025.8,0.78969]
[1742444101874,0.78967,2025.9,2025.8,0.78969]
[1742444102074,2.11577,2025.9,2025.8,0.78969]
[1742444102473,1.3261,2025.9,2025.8,0.78969]
[1742444102669,1.3261,2025.9,2025.8,0.78971]
[1742444102870,2.11577,2025.9,2025.7,0.78972]
[1742444103181,1.3261,2025.9,2025.8,0.78971]
[1742444103978,2.11577,2025.9,2025.7,2.11072]
[1742444104369,0.78967,2025.9,2025.8,1.321]
[1742444104570,1.348,2026.0,2025.8,1.321]
[1742444104571,2.13765,2026.0,2025.8,2.1107]
[1742444105073,2.13765,2026.0,2025.9,1.321]
[1742444106567,0.78973,2025.8,2025.7,0.78975]
[1742444106873,0.78969,2025.9,2025.7,2.09683]
[1742444107079,0.78969,2025.9,2025.8,1.3071]
[1742444107280,0.78972,2025.8,2025.6,0.78977]
[1742444107482,3.99752,2025.8,2025.6,0.78977]
[1742444107977,3.99752,2025.8,2025.7,1.3071]
[1742444108178,3.99752,2025.8,2025.4,3.8119]
[1742444108179,0.78975,2025.7,2025.4,3.8119]
[1742444108373,0.78975,2025.7,2025.6,0.78979]
[1742444108575,3.2078,2025.8,2025.5,1.3071]
[1742444108875,3.2078,2025.8,2025.7,0.78975]
[1742444110882,0.78968,2025.9,2025.7,0.78975]
[1742444111185,0.78968,2025.9,2025.8,1.2999]
[1742444111482,0.78973,2025.8,2025.6,0.78976]
[1742444111683,0.78973,2025.8,2025.7,1.2999]
[1742444112084,0.78973,2025.8,2025.7,2.08965]
[1742444112783,0.78973,2025.8,2025.7,1.2999]
[1742444113177,0.78973,2025.8,2025.7,2.08965]
[1742444113980,0.7898,2025.6,2025.5,0.78981]
[1742444114177,0.7898,2025.6,2025.5,2.13831]
[1742444115084,0.7898,2025.6,2025.5,1.3485]
[1742444115475,0.7898,2025.6,2025.5,2.13833]
[1742444117382,0.7898,2025.6,2025.5,1.3485]
[1742444119079,3.157,2025.8,2025.5,1.3485]
[1742444119080,0.78978,2025.7,2025.5,1.3485]
[1742444119274,0.78978,2025.7,2025.6,0.78979]
[1742444119469,0.78979,2025.6,2025.5,2.13831]
[1742444119680,0.78979,2025.6,2025.5,1.3485]
[1742444120987,1.43949,2025.6,2025.5,1.3485]
[1742444121474,2.10929,2025.6,2025.5,1.3485]
[1742444122278,2.10929,2025.6,2025.5,2.13833]
[1742444122578,2.10929,2025.6,2025.5,1.3485]
[1742444123087,2.10929,2025.6,2025.5,2.13833]
[1742444123388,2.10929,2025.6,2025.5,1.3485]
[1742444123987,0.78991,2025.3,2025.2,0.00740631]
[1742444124886,1.44251,2025.3,2025.2,0.00740631]
[1742444125389,2.81291,2025.3,2025.2,0.00740631]
[1742444126181,2.81291,2025.3,2025.2,1.39940631]
[1742444127589,2.81291,2025.3,2025.2,2.18935631]
[1742444127784,2.81291,2025.3,2025.2,1.39940631]
[1742444127994,3.157,2025.3,2025.2,2.18935631]
[1742444128289,0.78987,2025.4,2025.3,0.7899]
[1742444128489,2.10027,2025.4,2025.3,0.7899]
[1742444130983,2.10027,2025.4,2025.3,0.658]
[1742444131489,2.10027,2025.4,2025.3,1.954]
[1742444132784,2.10027,2025.4,2025.3,2.74391]
[1742444136995,2.10027,2025.4,2025.3,1.954]
[1742444137488,2.10027,2025.4,2025.3,2.74391]
[1742444140686,3.2078,2025.5,2025.4,0.78987]
[1742444140882,5.96,2025.6,2025.5,0.78983]
[1742444141285,5.96,2025.6,2025.5,2.19593]
[1742444141493,6.74979,2025.6,2025.5,1.4061]
[1742444141688,8.10089,2025.6,2025.5,1.4061]
[1742444142784,8.10089,2025.6,2025.5,2.19593]
[1742444143788,8.10089,2025.6,2025.5,1.4061]
[1742444143989,8.10089,2025.6,2025.5,2.19593]
[1742444145095,8.10089,2025.6,2025.5,1.4061]
[1742444145587,8.10089,2025.6,2025.5,2.19593]
[1742444145790,2.14089,2025.6,2025.5,2.19593]
[1742444146798,2.14089,2025.6,2025.5,1.4061]
[1742444149499,5.29789,2025.6,2025.5,1.4061]
[1742444150113,0.78991,2025.3,2025.2,0.00740631]
[1742444150289,0.78998,2025.1,2025.0,1.3154]
[1742444150494,0.79006,2024.9,2024.8,3.2078]
[1742444150795,3.96506,2024.9,2024.8,1.3154]
[1742444151296,6.02346,2024.9,2024.8,1.3154]
[1742444156499,0.79014,2024.7,2024.6,0.00740631]
[1742444156696,3.96214,2024.7,2024.6,0.00740631]
[1742444157900,5.25614,2024.7,2024.6,0.00740631]
[1742444160404,5.25614,2024.7,2024.6,1.34330631]
[1742444162506,1.97605,2024.0,2023.6,3.2078]
[1742444162710,0.79045,2023.9,2023.8,0.6409]
[1742444163015,0.79053,2023.7,2023.6,3.2078]
[1742444163416,0.79057,2023.6,2023.5,1.2927]
[1742444163808,2.12947,2023.6,2023.5,1.2927]
[1742444165004,2.12947,2023.6,2023.5,2.5921]
[1742444165520,0.79061,2023.5,2023.4,0.00740631]
[1742444165813,5.25741,2023.5,2023.4,0.00740631]
[1742444168413,0.79069,2023.3,2023.2,1.2994]
[1742444168713,0.7908,2023.0,2022.9,41.4998]
[1742444169010,3.9718,2023.0,2022.9,41.4998]
[1742444169214,0.79084,2022.9,2022.8,3.8579]
[1742444170213,2.12354,2022.9,2022.8,5.1661]
[1742444170520,2.12354,2022.9,2022.8,1.9583]
[1742444170521,5.33134,2022.9,2022.8,1.9583]
[1742444171015,5.33134,2022.9,2022.8,1.3082]
[1742444172915,3.99864,2022.9,2022.8,1.3082]
[1742444173619,3.2078,2022.9,2022.8,1.3082]
[1742444173819,3.2078,2022.9,2022.8,2.09908]
[1742444174417,3.99864,2022.9,2022.8,1.3082]
[1742444174817,0.79084,2022.9,2022.8,42.1082]
[1742444175119,3.99864,2022.9,2022.8,42.1082]
[1742444175319,5.95934,2022.9,2022.8,1.3082]
[1742444178217,0.79092,2022.7,2022.6,0.00740631]
[1742444178526,3.97092,2022.7,2022.6,0.00740631]
[1742444178719,3.97092,2022.7,2022.6,0.79836631]
[1742444179523,3.97092,2022.7,2022.6,2.10756631]
[1742444180528,3.18,2022.7,2022.6,2.10756631]
[1742444180827,3.97092,2022.7,2022.6,1.31660631]
[1742444182929,3.97092,2022.7,2022.3,41.4597]
[1742444182930,0.79104,2022.4,2022.3,41.4597]
[1742444183128,3.97104,2022.4,2022.3,0.6597]
[1742444183828,5.30164,2022.4,2022.3,0.6597]
[1742444184123,3.97104,2022.4,2022.3,0.6597]
[1742444184429,0.79104,2022.4,2022.3,1.45078]
[1742444184727,6.3888,2022.6,2022.4,0.79104]
[1742444184728,0.79103,2022.5,2022.4,0.79104]
[1742444184927,0.79102,2022.5,2022.4,0.79102]
[1742444185736,0.79102,2022.5,2022.3,0.6597]
[1742444185937,7.17979,2022.6,2022.5,0.791]
[1742444186224,7.17977,2022.6,2022.5,0.791]
[1742444186820,6.3888,2022.6,2022.5,0.791]
[1742444187018,7.17976,2022.6,2022.5,0.791]
[1742444187730,7.17976,2022.6,2022.4,2.0663]
[1742444187936,7.17976,2022.6,2022.5,0.791]
[1742444188239,7.17976,2022.6,2022.5,2.0663]
[1742444190733,3.97196,2022.6,2022.5,2.0663]
[1742444192332,3.181,2022.6,2022.5,2.0663]
[1742444192534,4.6863,2022.8,2022.5,1.2753]
[1742444192729,4.6863,2022.8,2022.3,2.63738]
[1742444192730,0.79092,2022.7,2022.6,1.4027]
[1742444193035,8.52791,2022.8,2022.7,0.79092]
[1742444193423,7.17471,2022.8,2022.7,0.79092]
[1742444195331,6.3838,2022.8,2022.7,0.79092]
[1742444196035,0.00740631,2022.9,2022.8,0.79088]
[1742444196237,0.00740631,2022.9,2022.8,3.97088]
[1742444196635,2.1285,2023.3,2023.2,0.79073]
[1742444197034,0.79074,2023.2,2023.1,0.79075]
[1742444197339,2.12854,2023.2,2023.1,2.12455]
[1742444197641,7.17848,2023.4,2023.3,0.79069]
[1742444197941,0.79069,2023.3,2023.2,2.09489]
[1742444198143,0.79069,2023.3,2023.2,0.79069]
[1742444198442,0.79069,2023.3,2023.1,0.79813631]
[1742444198443,0.79073,2023.2,2023.1,0.79813631]
[1742444199740,1.3412,2023.3,2023.1,0.00740631]
[1742444200141,1.3412,2023.3,2023.1,0.79813631]
[1742444200142,0.79073,2023.2,2023.1,0.79813631]
[1742444200445,3.96973,2023.2,2023.1,0.00740631]
[1742444200644,4.66883,2023.2,2023.1,0.00740631]
[1742444200941,4.67183,2023.2,2023.1,0.00740631]
[1742444209444,4.67183,2023.2,2023.1,1.40500631]
[1742444210637,7.87963,2023.2,2023.1,1.40500631]
[1742444215952,7.87963,2023.2,2023.1,0.00740631]
[1742444217457,3.2078,2023.2,2023.1,0.79817631]
[1742444218348,3.2078,2023.2,2023.1,41.59817631]
[1742444218554,3.2078,2023.2,2023.1,43.54637631]
[1742444220251,3.2078,2023.2,2023.1,46.71937631]
[1742444222049,3.99853,2023.2,2023.1,43.54637631]
[1742444222253,3.99853,2023.2,2023.1,46.71737631]
[1742444222759,3.2078,2023.2,2023.1,46.71737631]
[1742444225856,0.00740631,2023.4,2023.3,0.79069]
[1742444226364,0.79069,2023.3,2023.2,2.0766]
[1742444226656,0.79069,2023.3,2023.2,1.2859]
[1742444227355,2.86089,2023.3,2023.2,1.2859]
[1742444228757,2.86089,2023.3,2023.2,2.07663]
[1742444228758,2.18099,2023.3,2023.2,2.07663]
[1742444229552,2.18099,2023.3,2023.2,1.2859]
[1742444230458,3.96808631,2023.4,2023.3,0.79069]
[1742444230658,3.96608631,2023.4,2023.3,0.79069]
[1742444230863,0.79805631,2023.4,2023.3,0.79069]
[1742444231457,3.18340631,2023.4,2023.2,1.2859]
[1742444231759,2.19419,2023.3,2023.2,1.2859]
[1742444232062,2.84489,2023.3,2023.2,1.2859]
[1742444235162,2.19419,2023.3,2023.2,2.07663]
[1742444235363,1.4035,2023.3,2023.2,2.07663]
[1742444235556,2.19419,2023.3,2023.2,1.2859]
[1742444235755,2.88689,2023.3,2023.2,1.2859]
[1742444235955,0.79073,2023.2,2023.1,0.00740631]
[1742444236166,5.30703,2023.2,2023.1,0.00740631]
[1742444237057,8.48003,2023.2,2023.1,0.00740631]
[1742444245364,8.48003,2023.2,2023.1,1.33660631]
[1742444246762,8.48003,2023.2,2023.1,0.00740631]
[1742444248469,18.57729647,2023.2,2022.0,3.2078]
[1742444248663,0.79131,2021.7,2021.6,1.81971198]
[1742444248970,0.79135,2021.6,2021.5,10.48444847]
[1742444249272,0.79135,2021.6,2020.8,70.64564274]
[1742444249273,0.79163,2020.9,2020.8,70.64564274]
[1742444249463,13.25943,2020.9,2020.8,70.64564274]
[1742444249664,7.30043,2020.9,2020.8,70.64564274]
[1742444249869,7.30043,2020.9,2020.8,75.59285648]
[1742444250075,7.30043,2020.9,2020.8,70.64564274]
[1742444250772,6.5088,2020.9,2020.8,75.59285648]
[1742444251072,7.30043,2020.9,2020.8,75.59285648]
[1742444251676,7.30043,2020.9,2020.8,70.64564274]
[1742444252871,3.2078,2020.9,2020.8,70.64564274]
[1742444253076,1.0872,2020.9,2020.8,76.38452648]
[1742444253267,0.00740631,2021.1,2021.0,0.79159]
[1742444253567,0.00740631,2021.1,2021.0,41.59159]
[1742444253774,17.34594956,2021.1,2021.0,47.90210374]
[1742444253971,17.34594956,2021.1,2021.0,47.11051374]
[1742444253972,18.13749956,2021.1,2021.0,47.11051374]
[1742444254275,21.44349956,2021.1,2021.0,47.11051374]
[1742444255974,20.65194956,2021.1,2021.0,47.90210374]
[1742444256466,17.34594956,2021.1,2021.0,47.90210374]
[1742444257470,8.3475602,2021.1,2021.0,50.40210374]
[1742444257673,10.11819453,2021.2,2021.1,0.79155]
[1742444257878,7.36609453,2021.2,2021.1,7.30635]
[1742444258070,7.36609453,2021.2,2021.1,9.80635]
[1742444258276,9.56823883,2021.2,2021.1,9.80635]
[1742444258578,8.51846883,2021.2,2021.1,9.80635]
[1742444258768,0.00740631,2021.4,2021.3,0.79147]
[1742444258974,6.31e-06,2021.4,2021.3,4.10547]
[1742444260373,6.31e-06,2021.4,2021.3,0.79147]
[1742444260569,6.31e-06,2021.4,2021.3,4.10547]
[1742444262770,6.31e-06,2021.4,2021.3,0.79147]
[1742444263084,6.31e-06,2021.4,2021.3,3.29147]
[1742444264882,5.96,2022.2,2022.1,0.79116]
[1742444265182,0.79113,2022.2,2021.8,8.49299]
[1742444265481,0.79112,2022.2,2022.0,0.79118]
[1742444265669,9.60083699,2022.3,2021.9,0.79121]
[1742444265866,0.79119,2022.1,2021.9,0.79123]
[1742444266170,0.79115,2022.2,2022.0,0.79119]
[1742444266366,2.09765,2022.2,2022.0,0.79119]
[1742444267175,0.79117,2022.1,2021.9,0.79861631]
[1742444267375,1.2853,2022.0,2021.9,0.79861631]
[1742444268077,1.2853,2022.0,2021.9,0.00740631]
[1742444268286,2.0765,2022.0,2021.9,0.00740631]
[1742444268584,2.7466,2022.0,2021.9,0.00740631]
[1742444269785,2.7466,2022.0,2021.9,0.79863631]
[1742444270679,2.7466,2022.0,2021.9,0.00740631]
[1742444274283,2.7466,2022.0,2021.9,0.79863631]
[1742444274685,2.7466,2022.0,2021.9,0.00740631]
[1742444274987,0.79133,2021.7,2021.6,0.79132]
[1742444275187,4.0783,2021.8,2021.7,0.79131]
[1742444276491,0.79135,2021.6,2021.5,0.79877631]
[1742444276994,0.79135,2021.6,2021.5,0.00740631]
[1742444277382,4.08435,2021.6,2021.5,0.00740631]
[1742444277688,5.39195,2021.6,2021.5,0.00740631]
[1742444278381,5.39195,2021.6,2021.5,0.79879631]
[1742444278584,4.6006,2021.6,2021.5,0.79879631]
[1742444278778,4.6006,2021.6,2021.5,4.00659631]
[1742444279093,1.3076,2021.6,2021.5,4.00659631]
[1742444279993,1.3076,2021.6,2021.5,44.80659631]
[1742444283891,1.3076,2021.6,2021.5,4.00659631]
[1742444285495,2.09895,2021.6,2021.5,4.00659631]
[1742444285695,2.09895,2021.6,2021.5,3.21520631]
[1742444286092,2.09895,2021.6,2021.5,4.00659631]
[1742444286294,2.09895,2021.6,2021.5,3.21520631]
[1742444286496,2.09895,2021.6,2021.5,4.00659631]
[1742444286695,2.09895,2021.6,2021.5,3.21520631]
[1742444287492,2.09895,2021.6,2021.5,0.00740631]
[1742444290190,2.09895,2021.6,2021.5,0.79879631]
[1742444293103,2.09895,2021.6,2021.5,0.00740631]
[1742444293598,2.75485,2021.6,2021.5,0.00740631]
[1742444297499,19.96888191,2021.6,2021.5,0.00740631]
[1742444298293,20.62238191,2021.6,2021.5,0.00740631]
[1742444298604,0.79147,2021.3,2021.2,3.2078]
[1742444299196,2.08037,2021.3,2021.2,3.2078]
[1742444300703,0.79151,2021.2,2021.1,0.79154]
[1742444300902,2.82981,2021.2,2021.1,0.79154]
[1742444301305,0.79155,2021.1,2021.0,41.59898631]
[1742444301497,2.19075,2021.1,2021.0,41.59898631]
[1742444303307,2.19075,2021.1,2021.0,40.80740631]
[1742444303698,17.65559592,2021.1,2021.0,0.00740631]
[1742444304406,16.86404592,2021.1,2021.0,0.79899631]
[1742444305199,17.65559592,2021.1,2021.0,0.79899631]
[1742444305399,16.86404592,2021.1,2021.0,0.79899631]
[1742444306107,14.93182892,2021.1,2021.0,0.79899631]
[1742444308098,15.72337892,2021.1,2021.0,0.79899631]
[1742444308702,14.93182892,2021.1,2021.0,0.79899631]
[1742444309500,15.72337892,2021.1,2021.0,0.79899631]
[1742444309700,14.93182892,2021.1,2021.0,0.79899631]
[1742444310910,14.93182892,2021.1,2021.0,4.04799631]
[1742444310911,13.53262892,2021.1,2021.0,4.04799631]
[1742444311611,13.53262892,2021.1,2021.0,6.54799631]
[1742444312605,15.46484592,2021.2,2021.1,0.79155]
[1742444312906,19.12670212,2021.4,2021.3,0.79147]
[1742444313207,19.12670212,2021.4,2021.3,7.25627]
[1742444313396,19.12670212,2021.4,2021.3,9.75627]
[1742444314108,0.00740631,2021.6,2021.5,0.79139]
[1742444314410,0.00740631,2021.6,2021.5,4.04639]
[1742444316510,1.33180631,2021.6,2021.5,4.04639]
[1742444317709,1.33180631,2021.6,2021.5,3.255]
[1742444317913,2.12315631,2021.6,2021.5,0.79139]
[1742444318108,2.12315631,2021.6,2021.4,0.7914]
[1742444318313,0.79143,2021.4,2021.3,3.99924]
[1742444318699,2.11583,2021.4,2021.3,3.99924]
[1742444319206,2.11583,2021.4,2021.3,3.2078]
[1742444319606,2.11583,2021.4,2021.2,0.7915]
[1742444319912,0.7057,2021.3,2021.2,0.7915]
[1742444320099,2.0187,2021.3,2021.2,0.7915]
[1742444320305,2.81019,2021.3,2021.2,0.79151]
[1742444320707,0.79152,2021.2,2021.1,0.79155]
[1742444320908,2.10452,2021.2,2021.0,4.00676631]
[1742444321109,0.6736,2021.1,2021.0,4.00676631]
[1742444321304,2.77815,2021.1,2021.0,4.00676631]
[1742444321504,1.9866,2021.1,2021.0,4.00679631]
[1742444321705,1.9866,2021.1,2021.0,44.80679631]
[1742444321902,1.9866,2021.1,2021.0,4.00679631]
[1742444322105,2.77815,2021.1,2021.0,4.00679631]
[1742444322306,1.9866,2021.1,2021.0,4.00679631]
[1742444323712,1.9866,2021.1,2021.0,3.21520631]
[1742444323913,1.9866,2021.1,2021.0,4.00679631]
[1742444324217,2.77815,2021.1,2021.0,4.00679631]
[1742444324716,2.77815,2021.1,2021.0,3.21520631]
[1742444325519,2.77815,2021.1,2021.0,4.00679631]
[1742444327123,2.77815,2021.1,2021.0,3.21520631]
[1742444328218,2.77815,2021.1,2021.0,4.00679631]
[1742444328429,2.77815,2021.1,2021.0,0.79899631]
[1742444329023,2.77815,2021.1,2021.0,0.00740631]
[1742444329824,2.77815,2021.1,2021.0,0.79899631]
[1742444330624,1.9866,2021.1,2021.0,4.00679631]
[1742444331026,2.77815,2021.1,2021.0,4.00679631]
[1742444331725,1.9866,2021.1,2021.0,4.00679631]
[1742444333832,2.77815,2021.1,2021.0,4.00679631]
[1742444334625,1.9866,2021.1,2021.0,4.00679631]
[1742444339729,1.9866,2021.1,2021.0,0.79899631]
[1742444340030,1.9866,2021.1,2021.0,4.00679631]
[1742444340229,1.9866,2021.1,2021.0,3.21520631]
[1742444340230,2.77815,2021.1,2021.0,3.21520631]
[1742444340529,2.77815,2021.1,2021.0,4.00679631]
[1742444341435,1.9866,2021.1,2021.0,4.00679631]
[1742444343636,1.9866,2021.1,2021.0,7.23379631]
[1742444344242,1.9866,2021.1,2021.0,48.03379631]
[1742444346942,1.313,2021.1,2021.0,48.03379631]
[1742444347838,0.7013,2021.4,2021.3,0.79147]
[1742444348541,0.7013,2021.4,2021.3,3.99927]
[1742444349241,2.0201,2021.4,2021.3,3.99927]
[1742444349742,1.3188,2021.4,2021.3,3.99927]
[1742444350042,0.00740631,2021.6,2021.5,0.79139]
[1742444350241,0.00740631,2021.6,2021.5,4.01939]
[1742444352745,0.00740631,2021.6,2021.5,6.51939]
[1742444353148,6.31e-06,2021.6,2021.5,6.51939]
[1742444353648,6.31e-06,2021.6,2021.5,12.47939]
[1742444358542,6.31e-06,2021.6,2021.5,9.92939]
[1742444359242,6.31e-06,2021.6,2021.5,10.72078]
[1742444366755,6.31e-06,2021.6,2021.5,13.92858]
[1742444367848,0.63910631,2021.6,2021.5,13.92858]
[1742444370946,0.63910631,2021.6,2021.5,11.42858]
[1742444372657,0.63910631,2021.6,2021.5,13.92858]
[1742444372952,0.63910631,2021.6,2021.5,11.42858]
[1742444380060,0.63910631,2021.6,2021.5,12.96418769]
[1742444381168,1.343,2021.7,2021.6,0.79135]
[1742444381366,1.343,2021.7,2021.6,2.32801827]
[1742444382762,1.343,2021.7,2021.6,2.69600466]
[1742444384370,1.9925,2021.7,2021.6,2.69600466]
[1742444386776,1.9925,2021.7,2021.6,1.15933639]
[1742444388676,1.9925,2021.7,2021.6,3.98135]
[1742444392472,1.9925,2021.7,2021.6,5.51780918]
[1742444392970,25.08670212,2022.6,2022.5,0.791]
[1742444393175,19.12670212,2022.6,2022.5,0.791]
[1742444394878,22.33450212,2022.7,2022.6,0.79096]
[1742444396083,23.66750212,2022.7,2022.6,0.79096]
[1742444398083,25.05920212,2022.7,2022.6,0.79096]
[1742444398574,21.85140212,2022.7,2022.6,0.79096]
[1742444398780,21.85140212,2022.7,2022.6,3.99876]
[1742444402275,21.85140212,2022.7,2022.6,7.18576]
[1742444404085,19.31155212,2022.7,2022.6,7.57528719]
[1742444404289,19.31155212,2022.7,2022.6,8.27058719]
[1742444404581,1.3667,2023.2,2023.1,0.79077]
[1742444404786,1.3667,2023.2,2023.1,3.99857]
[1742444405574,1.3667,2023.2,2023.1,5.33997]
[1742444405773,3.2078,2023.7,2023.1,4.5492]
[1742444405976,3.2078,2023.7,2023.6,0.79057]
[1742444406383,21.19155287,2023.8,2023.7,0.79053]
[1742444406978,22.56775287,2023.8,2023.7,0.79053]
[1742444407289,22.56775287,2023.8,2023.6,0.79054]
[1742444407482,22.56775287,2023.8,2023.7,0.79053]
[1742444407782,23.96545287,2023.8,2023.5,3.2078]
[1742444408087,1.3977,2023.7,2023.6,0.79057]
[1742444410684,1.3977,2023.7,2023.6,3.97957]
[1742444411285,1.3977,2023.7,2023.6,5.25837]
[1742444412587,1.3977,2023.7,2023.6,3.97957]
[1742444414182,1.3977,2023.7,2023.6,7.18737]
[1742444417880,1.3977,2023.7,2023.6,8.50647]
[1742444418086,5.96,2024.1,2024.0,0.79041]
[1742444420789,1.2943,2024.2,2024.1,0.79037]
[1742444421888,1.2943,2024.2,2024.0,3.97639]
[1742444422194,1.2943,2024.2,2024.0,0.79041]
[1742444422382,0.79038,2024.1,2023.9,3.99824]
[1742444422595,1.31,2024.0,2023.9,3.99824]
[1742444422888,2.10041,2024.0,2023.9,3.2078]
[1742444423091,0.79049,2023.9,2023.5,1.97652]
[1742444423397,8.49829,2023.9,2023.5,1.97652]
[1742444423597,7.7078,2023.9,2023.7,0.7905]
[1742444423793,1.31,2023.8,2023.7,0.7905]
[1742444424497,2.10049,2023.8,2023.4,1.98393631]
[1742444424702,2.10049,2023.8,2023.7,0.79053]
[1742444424992,0.79053,2023.7,2023.6,0.79053]
[1742444425193,0.79057,2023.6,2023.5,0.79058]
[1742444425389,0.79061,2023.5,2023.4,0.79802631]
[1742444425589,1.3384,2023.5,2023.4,0.79802631]
[1742444426390,5.2181,2023.5,2023.4,0.79802631]
[1742444426997,2.0291,2023.5,2023.4,0.79802631]
[1742444429197,2.0291,2023.5,2023.4,0.00740631]
[1742444430091,2.0291,2023.5,2023.4,0.79805631]
[1742444430594,1.3384,2023.5,2023.4,0.79805631]
[1742444430899,1.3384,2023.5,2023.4,0.00740631]
[1742444431991,1.3384,2023.5,2023.4,0.79805631]
[1742444436196,1.3384,2023.5,2023.4,2.15555631]
[1742444440096,1.3384,2023.5,2023.4,0.79805631]
[1742444440704,1.3384,2023.5,2023.4,0.00740631]
[1742444441005,4.5462,2023.5,2023.4,0.79805631]
[1742444442400,1.3384,2023.5,2023.4,0.79805631]
[1742444443605,4.5462,2023.5,2023.4,0.79805631]
[1742444444998,5.33681,2023.5,2023.4,0.79805631]
[1742444445199,4.5462,2023.5,2023.4,0.79805631]
[1742444446601,4.5462,2023.5,2023.4,2.16745631]
[1742444447208,4.5462,2023.5,2023.4,0.79805631]
[1742444448798,5.33681,2023.5,2023.4,0.00740631]
[1742444449605,5.33681,2023.5,2023.4,0.79805631]
[1742444450505,5.33681,2023.5,2023.4,0.00740631]
[1742444451916,5.33681,2023.5,2023.4,0.79805631]
[1742444453207,4.5462,2023.5,2023.4,0.79805631]
[1742444454010,5.33681,2023.5,2023.4,0.79805631]
[1742444454413,5.33681,2023.5,2023.4,0.00740631]
[1742444458000,0.7908,2023.1,2022.9,3.2078]
[1742444458214,0.7908,2023.1,2023.0,0.79079]
[1742444460010,0.7908,2023.0,2022.9,45.3555]
[1742444460316,0.7908,2023.1,2023.0,0.79079]
[1742444460710,0.7908,2023.1,2022.9,46.14632]
[1742444460909,0.7908,2023.0,2022.9,45.3555]
[1742444461322,0.7908,2023.0,2022.9,46.14634]
[1742444461517,0.79079,2023.1,2022.9,46.14634]
[1742444461709,0.7908,2023.0,2022.9,46.14634]
[1742444462110,0.7908,2023.0,2022.9,45.3555]
[1742444462315,0.7908,2023.0,2022.9,3.2078]
[1742444462516,0.79084,2022.9,2022.8,0.00740631]
[1742444464313,3.99864,2022.9,2022.8,0.00740631]
[1742444465120,9.95864,2022.9,2022.8,0.00740631]
[1742444465718,1.97736,2022.7,2022.3,3.99886]
[1742444465918,0.79104,2022.4,2022.3,3.2078]
[1742444466423,3.96704,2022.4,2022.3,3.2078]
[1742444467126,3.176,2022.4,2022.3,3.99888]
[1742444467513,12.9923,2022.6,2022.3,3.2078]
[1742444467718,0.79104,2022.4,2022.3,3.99884]
[1742444468320,0.79104,2022.4,2022.3,3.2078]
[1742444469420,3.97004,2022.4,2022.3,3.2078]
[1742444469728,0.79112,2022.2,2022.1,42.19070631]
[1742444470320,2.20072,2022.2,2022.1,42.19070631]
[1742444471624,2.20072,2022.2,2022.1,42.98186631]
[1742444471840,2.20072,2022.2,2022.1,42.19070631]
[1742444473129,2.20072,2022.2,2022.1,0.00740631]
[1742444473438,2.87162,2022.2,2022.1,0.00740631]
[1742444473630,6.04862,2022.2,2022.1,0.00740631]
[1742444478236,2.87162,2022.2,2022.1,0.00740631]
[1742444478434,5.37572,2022.2,2022.1,0.00740631]
[1742444478633,5.37572,2022.2,2022.1,1.46256631]
[1742444478941,5.37572,2022.2,2022.1,0.67140631]
[1742444479327,5.37572,2022.2,2022.1,2.02730631]
[1742444484331,5.37572,2022.2,2022.1,0.00740631]
[1742444484740,6.03712,2022.2,2022.1,0.00740631]
[1742444488747,5.37572,2022.2,2022.1,0.79856631]
[1742444488939,5.37572,2022.2,2022.1,0.00740631]
[1742444489340,5.37572,2022.2,2022.1,1.28080631]
[1742444490742,5.37572,2022.2,2022.1,0.00740631]
[1742444494949,5.37572,2022.2,2022.1,0.79856631]
[1742444495152,5.37572,2022.2,2022.1,0.00740631]
[1742444495450,5.37572,2022.2,2022.1,0.79856631]
[1742444495751,5.37572,2022.2,2022.1,2.08696631]
[1742444495951,2.20072,2022.2,2022.1,2.08696631]
[1742444497246,1.4096,2022.2,2022.1,2.08696631]
[1742444497447,9.95891,2022.3,2022.2,0.79112]
[1742444497753,3.2078,2022.3,2022.2,2.71762]
[1742444497945,3.2078,2022.3,2022.2,3.38012]
[1742444498145,1.3155,2022.4,2022.3,0.79108]
[1742444498346,6.75103,2022.5,2022.4,0.79104]
[1742444498548,6.75103,2022.5,2022.3,2.07945]
[1742444498549,8.06653,2022.5,2022.3,2.07945]
[1742444498852,7.2755,2022.5,2022.3,2.07945]
[1742444499046,8.0665,2022.5,2022.4,1.3868]
[1742444500749,5.96,2022.5,2022.4,2.17784]
[1742444500950,3.2078,2022.6,2022.5,0.791]
[1742444501157,3.2078,2022.6,2022.5,2.1778]
[1742444501857,3.2078,2022.6,2022.5,2.8592]
[1742444511165,3.2078,2022.6,2022.5,1.4724]
[1742444511354,4.4802,2022.6,2022.5,1.4724]
[1742444512163,4.4802,2022.6,2022.5,2.8207]
[1742444513861,5.27116,2022.6,2022.5,0.791]
[1742444514364,4.4802,2022.6,2022.5,0.791]
[1742444515358,4.4802,2022.6,2022.5,1.4796]
[1742444516064,4.4802,2022.6,2022.5,0.791]
[1742444517266,5.27116,2022.6,2022.5,0.791]
[1742444517668,4.4802,2022.6,2022.5,0.791]
[1742444519070,5.27116,2022.6,2022.5,0.791]
[1742444519269,4.4802,2022.6,2022.5,0.791]
[1742444520369,1.2724,2022.6,2022.5,0.791]
[1742444520864,1.2724,2022.6,2022.5,3.961]
[1742444525272,5.96,2023.2,2023.1,0.79077]
[1742444525479,1.3863,2023.2,2023.1,0.79077]
[1742444525672,0.7,2023.2,2023.1,0.79077]
[1742444525880,9.13640631,2023.3,2023.2,0.79073]
[1742444526177,5.96740631,2023.3,2023.2,0.79073]
[1742444526877,0.00740631,2023.3,2023.2,42.26423]
[1742444527179,0.00740631,2023.3,2023.2,43.53603]
[1742444527972,0.6863,2023.8,2023.7,0.79053]